fUST/lending_fUST_20250525
["ID","MTS","AMOUNT","RATE_DAILY","PERIOD"]
[362254832,1748121048582,-430.0,0.00022191,2]
[362254834,1748121048591,-2085.22,0.00022191,2]
[362254836,1748121048600,-567.4,0.00022191,2]
[362254838,1748121048609,-430.0,0.00022191,2]
[362254840,1748121048619,-430.0,0.00022191,2]
[362254842,1748121048628,-430.0,0.00022191,2]
[362254844,1748121048637,-515.38,0.00022191,2]
[362254846,1748121048646,-430.0,0.00022191,2]
[362254848,1748121048657,-430.0,0.00022191,2]
[362254850,1748121048667,-824.47,0.00022191,2]
[362254852,1748121048676,-430.0,0.00022191,2]
[362254854,1748121048685,-430.0,0.00022191,2]
[362254856,1748121048695,-430.0,0.00022191,2]
[362254858,1748121048704,-430.0,0.00022191,2]
[362254860,1748121048713,-430.0,0.00022191,2]
[362254862,1748121048723,-430.0,0.00022191,2]
[362254864,1748121048732,-438.64,0.00022191,2]
[362254866,1748121048741,-430.0,0.00022191,2]
[362254868,1748121048750,-430.0,0.00022191,2]
[362254870,1748121048760,-430.0,0.00022191,2]
[362254872,1748121048769,-430.0,0.00022191,2]
[362254873,1748121048779,-2791.15,0.00022191,2]
[362254875,1748121048788,-430.0,0.00022191,2]
[362254877,1748121048797,-430.0,0.00022191,2]
[362254879,1748121048806,-430.0,0.00022191,2]
[362254881,1748121048815,-153.90297831,0.00022191,2]
[362254883,1748121048825,-430.0,0.00022191,2]
[362254885,1748121048834,-430.0,0.00022191,2]
[362254887,1748121048843,-151.92719648,0.00022191,2]
[362254889,1748121048852,-151.32294275,0.00022191,2]
[362254891,1748121048862,-430.0,0.00022191,2]
[362254893,1748121048872,-430.0,0.00022191,2]
[362254895,1748121048881,-430.0,0.00022191,2]
[362254897,1748121048890,-430.0,0.00022191,2]
[362254898,1748121048900,-400.0,0.00022191,2]
[362254900,1748121048911,-430.0,0.00022191,2]
[362254902,1748121048920,-999.25,0.00022191,2]
[362254904,1748121048930,-430.0,0.00022191,2]
[362254906,1748121048940,-158.60730553,0.00022191,2]
[362254908,1748121048950,-430.0,0.00022191,2]
[362254910,1748121048959,-430.0,0.00022191,2]
[362254912,1748121048969,-288.06439291,0.00022191,2]
[362254914,1748121048979,-430.0,0.00022191,2]
[362254916,1748121048989,-163.66305584,0.00022191,2]
[362254918,1748121048998,-430.0,0.00022191,2]
[362254920,1748121049008,-272.28529561,0.00022191,2]
[362254922,1748121049018,-430.0,0.00022191,2]
[362254924,1748121049027,-360.0,0.00022191,2]
[362254926,1748121049037,-1101.64,0.00022191,2]
[362254928,1748121049046,-430.0,0.00022191,2]
[362254930,1748121049056,-430.0,0.00022191,2]
[362254932,1748121049066,-370.0,0.00022191,2]
[362254934,1748121049077,-158.710353,0.00022191,7]
[362254936,1748121049087,-430.0,0.00022191,2]
[362254938,1748121049097,-5231.77,0.00022191,2]
[362254940,1748121049106,-158.710355,0.00022191,7]
[362254942,1748121049117,-430.0,0.00022191,2]
[362254944,1748121049127,-430.0,0.00022191,2]
[362254946,1748121049136,-430.0,0.00022191,2]
[362254948,1748121049145,-430.0,0.00022191,2]
[362254950,1748121049156,-430.0,0.00022191,2]
[362254952,1748121049166,-430.0,0.00022191,2]
[362254954,1748121049175,-281.6223811,0.00022191,2]
[362254955,1748121049184,-430.0,0.00022191,2]
[362254957,1748121049194,-430.0,0.00022191,2]
[362254959,1748121049203,-430.0,0.00022191,2]
[362254961,1748121049213,-430.0,0.00022191,2]
[362254963,1748121049222,-430.0,0.00022191,2]
[362254965,1748121049232,-430.0,0.00022191,2]
[362254967,1748121049241,-698.16,0.00022191,2]
[362254969,1748121049251,-430.0,0.00022191,2]
[362254978,1748121049328,-430.0,0.00022191,2]
[362254980,1748121049339,-529.49,0.00022191,2]
[362254982,1748121049348,-430.0,0.00022191,2]
[362254984,1748121049358,-430.0,0.00022191,2]
[362254986,1748121049368,-593.18,0.00022191,2]
[362254987,1748121049378,-430.0,0.00022191,2]
[362254989,1748121049387,-430.0,0.00022191,2]
[362254991,1748121049397,-464.87,0.00022191,2]
[362254993,1748121049407,-430.0,0.00022191,2]
[362254995,1748121049416,-430.19159187,0.00022191,2]
[362254997,1748121049426,-430.0,0.00022191,2]
[362254999,1748121049436,-430.0,0.00022191,2]
[362255001,1748121049445,-430.0,0.00022191,2]
[362255003,1748121049455,-430.0,0.00022191,2]
[362255005,1748121049464,-430.0,0.00022191,2]
[362255007,1748121049474,-1019.63,0.00022191,2]
[362255009,1748121049483,-430.0,0.00022191,2]
[362255011,1748121049492,-911.42,0.00022191,2]
[362255013,1748121049502,-430.0,0.00022191,2]
[362255015,1748121049512,-430.0,0.00022191,2]
[362255017,1748121049521,-430.0,0.00022191,2]
[362255019,1748121049531,-400.0,0.00022191,2]
[362255021,1748121049541,-167.75668702,0.00022191,2]
[362255023,1748121049551,-441.74560584,0.00022191,2]
[362255025,1748121049560,-430.0,0.00022191,2]
[362255027,1748121049571,-323.6116818,0.00022191,2]
[362255029,1748121049580,-430.0,0.00022191,2]
[362255031,1748121049589,-400.0,0.00022191,2]
[362255033,1748121049599,-430.0,0.00022191,2]
[362255034,1748121049609,-430.0,0.00022191,2]
[362255036,1748121049618,-151.0,0.000222,6]
[362255038,1748121049627,-8789.89148666,0.00022228,2]
[362255040,1748121049637,-192.0,0.00022259,2]
[362255042,1748121049647,-151.0,0.000223,8]
[362255044,1748121049658,-287.0,0.00022307,2]
[362255046,1748121049668,-420.0,0.00022307,2]
[362255048,1748121049677,-500.0,0.00022308,2]
[362255050,1748121049687,-420.0,0.00022308,2]
[362255052,1748121049696,-151.0,0.00022344,2]
[362255054,1748121049705,-396.11858519,0.00022344,2]
[362255056,1748121049715,-165.96162361,0.00022365,2]
[362255058,1748121049725,-8789.89148666,0.00022365,2]
[362255060,1748121049734,-500.0,0.00022366,2]
[362255062,1748121049744,-207.4,0.00022375,2]
[362255064,1748121049754,-151.0,0.000224,6]
[362255066,1748121049764,-151.0,0.000224,7]
[362255068,1748121049773,-280.688139,0.00022451,7]
[362255070,1748121049782,-280.688139,0.00022451,7]
[362255072,1748121049792,-324.69,0.00022462,2]
[362255073,1748121049802,-151.0,0.00022465,7]
[362255074,1748121049811,-430.0,0.00022465,2]
[362255075,1748121049821,-430.0,0.00022465,2]
[362255076,1748121049830,-570.0,0.00022465,2]
[362255077,1748121049840,-570.0,0.00022465,2]
[362255078,1748121049849,-570.0,0.00022465,2]
[362255079,1748121049859,-430.0,0.00022465,2]
[362255080,1748121049868,-151.0,0.00022465,7]
[362255081,1748121049878,-151.0,0.00022465,7]
[362255082,1748121049887,-503.052215,0.00022465,2]
[362255083,1748121049896,-151.0,0.00022465,7]
[362255084,1748121049906,-151.0,0.00022465,7]
[362255085,1748121049915,-510.0,0.00022465,2]
[362255086,1748121049924,-430.0,0.00022465,2]
[362255087,1748121049934,-430.0,0.00022465,2]
[362255088,1748121049943,-430.0,0.00022465,2]
[362255089,1748121049954,-550.0,0.00022465,2]
[362255090,1748121049964,-430.0,0.00022465,2]
[362255091,1748121049973,-430.0,0.00022465,2]
[362255092,1748121049983,-430.0,0.00022465,2]
[362255093,1748121049992,-487.53,0.00022465,2]
[362255094,1748121050001,-430.0,0.00022465,2]
[362255095,1748121050011,-430.0,0.00022465,2]
[362255096,1748121050021,-490.0,0.00022465,2]
[362255097,1748121050030,-490.0,0.00022465,2]
[362255098,1748121050040,-430.0,0.00022465,2]
[362255099,1748121050049,-430.0,0.00022465,2]
[362255100,1748121050058,-490.0,0.00022465,2]
[362255101,1748121050068,-430.0,0.00022465,2]
[362255102,1748121050080,-430.0,0.00022465,2]
[362255103,1748121050090,-229.99,0.00022465,2]
[362255104,1748121050099,-430.0,0.00022465,2]
[362255105,1748121050108,-151.0,0.00022465,7]
[362255106,1748121050118,-151.0,0.00022465,7]
[362255107,1748121050128,-430.0,0.00022465,2]
[362255108,1748121050137,-566.52,0.00022465,2]
[362255109,1748121050147,-430.0,0.00022465,2]
[362255110,1748121050156,-430.0,0.00022465,2]
[362255111,1748121050166,-420.22,0.00022465,2]
[362255112,1748121050175,-430.0,0.00022465,2]
[362255113,1748121050184,-430.0,0.00022465,2]
[362255114,1748121050193,-430.0,0.00022465,2]
[362255115,1748121050203,-430.0,0.00022465,2]
[362255116,1748121050212,-430.0,0.00022465,2]
[362255117,1748121050221,-430.0,0.00022465,2]
[362255118,1748121050230,-430.0,0.00022465,2]
[362255119,1748121050240,-430.0,0.00022465,2]
[362255120,1748121050249,-430.0,0.00022465,2]
[362255121,1748121050259,-428.63117572,0.00022465,2]
[362255122,1748121050269,-430.0,0.00022465,2]
[362255123,1748121050278,-430.0,0.00022465,2]
[362255124,1748121050288,-280.688139,0.00022465,7]
[362255125,1748121050297,-430.0,0.00022465,2]
[362255126,1748121050371,-280.688139,0.00022465,7]
[362255127,1748121050381,-430.0,0.00022465,2]
[362255128,1748121050391,-280.688139,0.00022465,7]
[362255129,1748121050401,-280.688139,0.00022465,7]
[362255130,1748121050411,-430.0,0.00022465,2]
[362255131,1748121050420,-430.0,0.00022465,2]
[362255132,1748121050430,-400.0,0.00022465,2]
[362255133,1748121050439,-511.35175731,0.00022465,2]
[362255134,1748121050448,-430.0,0.00022465,2]
[362255135,1748121050458,-178.83160997,0.00022465,2]
[362255136,1748121050467,-151.0,0.00022465,7]
[362255137,1748121050476,-151.0,0.00022465,7]
[362255138,1748121050486,-430.0,0.00022465,2]
[362255139,1748121050496,-430.0,0.00022465,2]
[362255140,1748121050506,-430.0,0.00022465,2]
[362255141,1748121050515,-430.0,0.00022465,2]
[362255142,1748121050525,-430.0,0.00022465,2]
[362255143,1748121050534,-430.0,0.00022465,2]
[362255144,1748121050544,-430.0,0.00022465,2]
[362255145,1748121050553,-430.0,0.00022465,2]
[362255146,1748121050563,-430.0,0.00022465,2]
[362255147,1748121050572,-430.0,0.00022465,2]
[362255148,1748121050582,-510.0,0.00022465,2]
[362255149,1748121050591,-430.0,0.00022465,2]
[362255150,1748121050600,-430.0,0.00022465,2]
[362255151,1748121050609,-430.0,0.00022465,2]
[362255152,1748121050619,-430.0,0.00022465,2]
[362255153,1748121050628,-430.0,0.00022465,2]
[362255154,1748121050638,-430.0,0.00022465,2]
[362255155,1748121050648,-430.0,0.00022465,2]
[362255156,1748121050658,-530.0,0.00022465,2]
[362255157,1748121050668,-513.81692754,0.00022465,2]
[362255158,1748121050677,-430.0,0.00022465,2]
[362255159,1748121050687,-430.0,0.00022465,2]
[362255160,1748121050696,-382.86160078,0.00022465,2]
[362255161,1748121050706,-430.0,0.00022465,2]
[362255162,1748121050716,-400.0,0.00022465,2]
[362255163,1748121050725,-430.0,0.00022465,2]
[362255164,1748121050735,-530.0,0.00022465,2]
[362255165,1748121050745,-430.0,0.00022465,2]
[362255166,1748121050755,-550.04,0.00022465,2]
[362255167,1748121050764,-390.0,0.00022465,2]
[362255168,1748121050774,-450.0,0.00022465,2]
[362255169,1748121050783,-430.0,0.00022465,2]
[362255170,1748121050792,-430.0,0.00022465,2]
[362255171,1748121050802,-430.0,0.00022465,2]
[362255172,1748121050811,-430.0,0.00022465,2]
[362255173,1748121050821,-430.0,0.00022465,2]
[362255174,1748121050842,-430.0,0.00022465,2]
[362255175,1748121050860,-430.0,0.00022465,2]
[362255176,1748121050879,-430.0,0.00022465,2]
[362255177,1748121050904,-430.0,0.00022465,2]
[362255178,1748121050923,-430.0,0.00022465,2]
[362255179,1748121050944,-430.0,0.00022465,2]
[362255180,1748121050960,-430.0,0.00022465,2]
[362255181,1748121050974,-430.0,0.00022465,2]
[362255182,1748121050995,-430.0,0.00022465,2]
[362255183,1748121051017,-430.0,0.00022465,2]
[362255184,1748121051032,-470.0,0.00022465,2]
[362255185,1748121051049,-430.0,0.00022465,2]
[362255186,1748121051066,-430.0,0.00022465,2]
[362255187,1748121051086,-430.0,0.00022465,2]
[362255188,1748121051100,-430.0,0.00022465,2]
[362255189,1748121051120,-430.0,0.00022465,2]
[362255190,1748121051138,-430.0,0.00022465,2]
[362255191,1748121051157,-400.0,0.00022465,2]
[362255192,1748121051174,-430.0,0.00022465,2]
[362255193,1748121051191,-430.0,0.00022465,2]
[362255194,1748121051207,-430.0,0.00022465,2]
[362255195,1748121051221,-370.0,0.00022465,2]
[362255196,1748121051239,-370.0,0.00022465,2]
[362255197,1748121051254,-409.98748143,0.00022465,2]
[362255198,1748121051269,-430.0,0.00022465,2]
[362255199,1748121051284,-430.0,0.00022465,2]
[362255200,1748121051300,-430.0,0.00022465,2]
[362255201,1748121051315,-430.0,0.00022465,2]
[362255202,1748121051331,-430.0,0.00022465,2]
[362255203,1748121051346,-430.0,0.00022465,2]
[362255204,1748121051362,-430.0,0.00022465,2]
[362255205,1748121051378,-530.0,0.00022465,2]
[362255206,1748121051393,-430.0,0.00022465,2]
[362255207,1748121051411,-450.0,0.00022465,2]
[362255208,1748121051427,-430.0,0.00022465,2]
[362255209,1748121051446,-430.0,0.00022465,2]
[362255210,1748121051463,-530.0,0.00022465,2]
[362255211,1748121051479,-430.0,0.00022465,2]
[362255212,1748121051495,-530.0,0.00022465,2]
[362255213,1748121051511,-345.93090145,0.00022465,2]
[362255214,1748121051527,-430.0,0.00022465,2]
[362255215,1748121051544,-430.0,0.00022465,2]
[362255216,1748121051560,-430.0,0.00022465,2]
[362255217,1748121051576,-430.0,0.00022465,2]
[362255218,1748121051591,-430.0,0.00022465,2]
[362255219,1748121051607,-317.46294542,0.00022465,2]
[362255220,1748121051723,-430.0,0.00022465,2]
[362255221,1748121051733,-430.0,0.00022465,2]
[362255222,1748121051743,-430.0,0.00022465,2]
[362255223,1748121051752,-430.0,0.00022465,2]
[362255224,1748121051762,-450.0,0.00022465,2]
[362255225,1748121051772,-430.0,0.00022465,2]
[362255226,1748121051781,-430.0,0.00022465,2]
[362255227,1748121051791,-430.0,0.00022465,2]
[362255228,1748121051800,-430.0,0.00022465,2]
[362255229,1748121051810,-430.0,0.00022465,2]
[362255230,1748121051820,-430.0,0.00022465,2]
[362255231,1748121051829,-430.0,0.00022465,2]
[362255232,1748121051839,-400.0,0.00022465,2]
[362255233,1748121051848,-430.0,0.00022465,2]
[362255234,1748121051857,-430.0,0.00022465,2]
[362255235,1748121051867,-430.0,0.00022465,2]
[362255236,1748121051876,-430.0,0.00022465,2]
[362255237,1748121051885,-430.0,0.00022465,2]
[362255238,1748121051895,-513.97,0.00022465,2]
[362255239,1748121051904,-430.0,0.00022465,2]
[362255240,1748121051915,-385.68922903,0.00022465,2]
[362255241,1748121051924,-430.0,0.00022465,2]
[362255242,1748121051933,-430.0,0.00022465,2]
[362255243,1748121051943,-400.0,0.00022465,2]
[362255244,1748121051953,-430.0,0.00022465,2]
[362255245,1748121051962,-430.0,0.00022465,2]
[362255246,1748121051972,-430.0,0.00022465,2]
[362255247,1748121051981,-777.32,0.00022465,2]
[362255248,1748121051990,-430.0,0.00022465,2]
[362255249,1748121052000,-430.0,0.00022465,2]
[362255250,1748121052009,-400.0,0.00022465,2]
[362255251,1748121052019,-436.96,0.00022465,2]
[362255252,1748121052028,-430.0,0.00022465,2]
[362255253,1748121052038,-430.0,0.00022465,2]
[362255254,1748121052047,-430.0,0.00022465,2]
[362255255,1748121052056,-430.0,0.00022465,2]
[362255256,1748121052066,-430.0,0.00022465,2]
[362255257,1748121052076,-2531.05,0.00022465,2]
[362255258,1748121052089,-430.0,0.00022465,2]
[362255259,1748121052099,-434.48,0.00022465,2]
[362255260,1748121052108,-430.0,0.00022465,2]
[362255261,1748121052119,-1086.65,0.00022465,2]
[362255262,1748121052128,-430.0,0.00022465,2]
[362255263,1748121052138,-428.16965099,0.00022465,2]
[362255264,1748121052147,-430.0,0.00022465,2]
[362255265,1748121052159,-430.0,0.00022465,2]
[362255266,1748121052168,-430.0,0.00022465,2]
[362255267,1748121052178,-476.44,0.00022465,2]
[362255268,1748121052187,-400.0,0.00022465,2]
[362255269,1748121052197,-430.0,0.00022465,2]
[362255270,1748121052207,-430.0,0.00022465,2]
[362255271,1748121052216,-400.0,0.00022465,2]
[362255272,1748121052225,-393.04,0.00022465,2]
[362255273,1748121052235,-430.0,0.00022465,2]
[362255274,1748121052245,-430.0,0.00022465,2]
[362255275,1748121052254,-463.18,0.00022465,2]
[362255276,1748121052263,-430.0,0.00022465,2]
[362255277,1748121052272,-430.0,0.00022465,2]
[362255278,1748121052282,-430.0,0.00022465,2]
[362255279,1748121052292,-508.9,0.00022465,2]
[362255282,1748121052311,-430.0,0.00022465,2]
[362255284,1748121052323,-430.0,0.00022465,2]
[362255286,1748121052333,-430.0,0.00022465,2]
[362255288,1748121052343,-430.0,0.00022465,2]
[362255290,1748121052353,-313.65,0.00022465,2]
[362255292,1748121052364,-430.0,0.00022465,2]
[362255294,1748121052374,-1117.42,0.00022465,2]
[362255296,1748121052384,-400.0,0.00022465,2]
[362255298,1748121052394,-464.83,0.00022465,2]
[362255300,1748121052404,-430.0,0.00022465,2]
[362255302,1748121052415,-430.0,0.00022465,2]
[362255304,1748121052426,-420.0,0.00022465,2]
[362255306,1748121052436,-430.0,0.00022465,2]
[362255308,1748121052446,-430.0,0.00022465,2]
[362255310,1748121052456,-430.0,0.00022465,2]
[362255312,1748121052466,-430.0,0.00022465,2]
[362255313,1748121052476,-430.0,0.00022465,2]
[362255314,1748121052486,-430.0,0.00022465,2]
[362255315,1748121052496,-430.0,0.00022465,2]
[362255316,1748121052507,-1834.6,0.00022465,2]
[362255317,1748121052518,-430.0,0.00022465,2]
[362255319,1748121052529,-170.0,0.00022465,2]
[362255321,1748121052539,-430.0,0.00022465,2]
[362255323,1748121052549,-430.0,0.00022465,2]
[362255325,1748121052559,-492.78,0.00022465,2]
[362255327,1748121052568,-430.0,0.00022465,2]
[362255329,1748121052578,-430.0,0.00022465,2]
[362255331,1748121052588,-837.43,0.00022465,2]
[362255333,1748121052599,-430.0,0.00022465,2]
[362255335,1748121052609,-500.29,0.00022465,2]
[362255336,1748121052618,-430.0,0.00022465,2]
[362255337,1748121052628,-649.52,0.00022465,2]
[362255338,1748121052638,-378.95621755,0.00022465,2]
[362255339,1748121052648,-430.0,0.00022465,2]
[362255340,1748121052658,-430.0,0.00022465,2]
[362255342,1748121052668,-430.0,0.00022465,2]
[362255344,1748121052678,-430.0,0.00022465,2]
[362255346,1748121052687,-430.0,0.00022465,2]
[362255348,1748121052698,-430.0,0.00022465,2]
[362255349,1748121052708,-430.0,0.00022465,2]
[362255350,1748121052718,-430.0,0.00022465,2]
[362255351,1748121052728,-430.0,0.00022465,2]
[362255352,1748121052738,-430.0,0.00022465,2]
[362255353,1748121052748,-430.0,0.00022465,2]
[362255354,1748121052758,-430.0,0.00022465,2]
[362255355,1748121052768,-430.0,0.00022465,2]
[362255356,1748121052778,-430.0,0.00022465,2]
[362255357,1748121052788,-400.0,0.00022465,2]
[362255358,1748121052798,-936.26,0.00022465,2]
[362255359,1748121052808,-575.12192138,0.00022465,2]
[362255360,1748121052818,-430.0,0.00022465,2]
[362255361,1748121052828,-430.0,0.00022465,2]
[362255362,1748121052838,-430.0,0.00022465,2]
[362255363,1748121052847,-460.0,0.00022465,2]
[362255364,1748121052858,-457.24858843,0.00022465,2]
[362255365,1748121052867,-430.0,0.00022465,2]
[362255366,1748121052877,-2085.22,0.00022465,2]
[362255367,1748121052887,-430.0,0.00022465,2]
[362255368,1748121052897,-430.0,0.00022465,2]
[362255369,1748121052908,-430.0,0.00022465,2]
[362255370,1748121052917,-515.38,0.00022465,2]
[362255371,1748121052927,-430.0,0.00022465,2]
[362255372,1748121053030,-430.0,0.00022465,2]
[362255373,1748121053040,-824.47,0.00022465,2]
[362255374,1748121053049,-430.0,0.00022465,2]
[362255375,1748121053059,-506.6118292,0.00022465,2]
[362255376,1748121053068,-430.0,0.00022465,2]
[362255377,1748121053079,-430.0,0.00022465,2]
[362255378,1748121053089,-438.64,0.00022465,2]
[362255379,1748121053098,-430.0,0.00022465,2]
[362255380,1748121053107,-430.0,0.00022465,2]
[362255381,1748121053117,-430.0,0.00022465,2]
[362255382,1748121053127,-2791.15,0.00022465,2]
[362255383,1748121053137,-430.0,0.00022465,2]
[362255384,1748121053147,-430.0,0.00022465,2]
[362255385,1748121053157,-430.0,0.00022465,2]
[362255386,1748121053168,-536.08,0.00022465,2]
[362255387,1748121053177,-430.0,0.00022465,2]
[362255388,1748121053186,-430.0,0.00022465,2]
[362255389,1748121053196,-490.0,0.00022465,2]
[362255390,1748121053205,-999.25,0.00022465,2]
[362255391,1748121053215,-430.0,0.00022465,2]
[362255392,1748121053225,-412.12261426,0.00022465,2]
[362255393,1748121053234,-430.0,0.00022465,2]
[362255394,1748121053244,-1101.64,0.00022465,2]
[362255395,1748121053253,-430.0,0.00022465,2]
[362255396,1748121053263,-430.0,0.00022465,2]
[362255397,1748121053273,-5231.77,0.00022465,2]
[362255398,1748121053282,-430.0,0.00022465,2]
[362255399,1748121053292,-430.0,0.00022465,2]
[362255400,1748121053302,-430.0,0.00022465,2]
[362255401,1748121053311,-430.0,0.00022465,2]
[362255402,1748121053321,-430.0,0.00022465,2]
[362255403,1748121053331,-430.0,0.00022465,2]
[362255404,1748121053340,-430.0,0.00022465,2]
[362255405,1748121053350,-430.0,0.00022465,2]
[362255406,1748121053364,-430.0,0.00022465,2]
[362255407,1748121053374,-698.16,0.00022465,2]
[362255408,1748121053383,-430.0,0.00022465,2]
[362255409,1748121053393,-503.00213461,0.00022465,2]
[362255410,1748121053667,-500.0,0.00021031,2]
[362255411,1748121053677,-445.47143029,0.00021031,2]
[362255412,1748121053687,-500.0,0.00021031,2]
[362255413,1748121053696,-188.93469548,0.00021031,2]
[362255414,1748121053705,-500.0,0.00021031,2]
[362255415,1748121053715,-500.0,0.00021031,2]
[362255416,1748121053724,-500.0,0.00021031,2]
[362255417,1748121053734,-500.0,0.00021031,2]
[362255418,1748121053744,-500.0,0.00021918,2]
[362255419,1748121053754,-26.48786539,0.00022465,2]
[362255420,1748121053764,-430.0,0.00022465,2]
[362255421,1748121053773,-593.18,0.00022465,2]
[362255422,1748121053783,-430.0,0.00022465,2]
[362255423,1748121053793,-430.0,0.00022465,2]
[362255424,1748121053803,-430.0,0.00022465,2]
[362255425,1748121053812,-430.0,0.00022465,2]
[362255426,1748121053823,-1019.63,0.00022465,2]
[362255427,1748121053832,-430.0,0.00022465,2]
[362255428,1748121053842,-911.42,0.00022465,2]
[362255429,1748121053852,-430.0,0.00022465,2]
[362255430,1748121053862,-430.0,0.00022465,2]
[362255431,1748121053871,-430.0,0.00022465,2]
[362255432,1748121053881,-430.0,0.00022465,2]
[362255433,1748121053891,-430.0,0.00022465,2]
[362255434,1748121053900,-500.0,0.00022473,2]
[362255435,1748121053911,-501.2794407,0.00022473,2]
[362255436,1748121053921,-500.0,0.00022473,2]
[362255437,1748121053931,-500.0,0.00022473,2]
[362255438,1748121053940,-470.39035754,0.00022502,2]
[362255439,1748121053950,-500.0,0.00022502,2]
[362255440,1748121053960,-500.0,0.00022502,2]
[362255441,1748121053971,-151142.2643943,0.00022512,2]
[362255442,1748121053980,-500.0,0.00022521,2]
[362255443,1748121053991,-212.51988043,0.0002256,2]
[362255444,1748121054001,-12649.97184255,0.0002256,2]
[362255445,1748121054089,-422.929492,0.0002256,2]
[362255446,1748121054101,-160.0,0.0002256,2]
[362255447,1748121054111,-160.0,0.0002256,2]
[362255448,1748121054121,-229.12393663,0.0002256,2]
[362255449,1748121054131,-151.0,0.0002265,7]
[362255450,1748121054141,-151.0,0.0002265,7]
[362255451,1748121054152,-907.67132712,0.00022721,2]
[362255452,1748121054164,-500.0,0.00022721,2]
[362255453,1748121054173,-829.74251551,0.00022721,2]
[362255454,1748121054183,-500.0,0.00022721,2]
[362255455,1748121054192,-500.0,0.00022721,2]
[362255456,1748121054202,-1000.0,0.00022721,2]
[362255457,1748121054212,-500.0,0.00022721,2]
[362255458,1748121054222,-500.0,0.00022721,2]
[362255459,1748121054232,-500.0,0.00022721,2]
[362255460,1748121054242,-346.0162765,0.00022721,2]
[362255461,1748121054251,-500.0,0.00022721,2]
[362255462,1748121054262,-1000.0,0.00022721,2]
[362255463,1748121054272,-500.0,0.00022721,2]
[362255464,1748121054282,-151.0,0.00022737,7]
[362255465,1748121054291,-430.0,0.00022739,2]
[362255466,1748121054301,-160.0,0.00022739,2]
[362255467,1748121054310,-430.0,0.00022739,2]
[362255468,1748121054320,-151.0,0.00022739,7]
[362255469,1748121054329,-151.0,0.00022739,7]
[362255470,1748121054342,-510.0,0.00022739,2]
[362255471,1748121054351,-430.0,0.00022739,2]
[362255472,1748121054361,-430.0,0.00022739,2]
[362255473,1748121054371,-430.0,0.00022739,2]
[362255474,1748121054380,-430.0,0.00022739,2]
[362255475,1748121054390,-419.13,0.00022739,2]
[362255476,1748121054399,-550.0,0.00022739,2]
[362255477,1748121054410,-530.0,0.00022739,2]
[362255478,1748121054419,-510.0,0.00022739,2]
[362255479,1748121054429,-530.0,0.00022739,2]
[362255480,1748121054439,-530.0,0.00022739,2]
[362255481,1748121054449,-430.0,0.00022739,2]
[362255482,1748121054459,-430.0,0.00022739,2]